bitfinex/quotes_ETHUSD_20240731
["timestamp","ask_amount","ask_price","bid_price","bid_amount"]
[1722450413781,3.03518,3294.7,3294.1,35.0]
[1722450414112,3.03516,3294.8,3294.3,3.03552]
[1722450414277,3.03516,3294.8,3294.1,38.03567]
[1722450414478,3.03516,3294.8,3294.1,3.03567]
[1722450414479,3.03522,3294.7,3294.1,3.03567]
[1722450414665,3.03464,3295.3,3294.2,3.03563]
[1722450414870,3.035,3294.9,3294.2,3.03563]
[1722450415315,3.03522,3294.7,3294.2,3.03563]
[1722450415524,3.03541,3294.5,3294.0,35.0]
[1722450415823,3.03541,3294.5,3293.8,0.005]
[1722450415824,3.03547,3294.4,3293.8,0.005]
[1722450415967,3.03547,3294.4,3293.8,3.04098]
[1722450416166,6.07099,3294.4,3293.8,3.04098]
[1722450416619,3.03547,3294.4,3293.8,3.04098]
[1722450417177,3.03561,3294.3,3293.8,2.99020829]
[1722450417431,2.3295,3294.9,3293.8,0.005]
[1722450417570,0.98538929,3294.8,3293.8,0.005]
[1722450417785,3.03578,3294.1,3293.8,0.005]
[1722450418191,3.03591,3293.9,3293.8,0.005]
[1722450418721,3.03556,3294.3,3293.8,0.005]
[1722450419073,3.03545,3294.4,3293.8,3.04099]
[1722450419273,3.03554,3294.3,3293.8,3.04099]
[1722450419495,3.03554,3294.3,3293.8,0.005]
[1722450419716,3.0,3295.0,3293.9,5.40356]
[1722450419942,3.03515,3294.8,3294.0,3.09645732]
[1722450420083,3.03519,3294.7,3294.1,3.03572]
[1722450420481,3.03504,3294.9,3294.3,3.03553]
[1722450420824,3.03518,3294.7,3294.1,3.0964272]
[1722450421007,3.03547,3294.4,3293.9,2.3677]
[1722450421341,3.03547,3294.4,3293.8,1.03905987]
[1722450421627,3.03527,3294.6,3293.8,1.03905987]
[1722450421830,3.03518,3294.7,3293.8,0.005]
[1722450422210,3.03582,3294.0,3293.8,0.005]
[1722450422579,3.03568,3294.2,3293.8,0.005]
[1722450423124,2.18815516,3295.2,3293.8,0.005]
[1722450423125,3.03528,3294.6,3293.8,0.0657169]
[1722450423334,3.03541,3294.5,3293.9,3.0359]
[1722450423930,3.03522,3294.7,3294.1,3.03572]
[1722450424148,3.03463,3295.3,3294.1,3.03572]
[1722450424149,3.03527,3294.6,3294.1,3.70966384]
[1722450424376,3.03527,3294.6,3293.9,3.03584]
[1722450424550,3.03536,3294.5,3293.9,3.03585]
[1722450424760,3.03536,3294.5,3293.8,0.06571276]
[1722450424761,3.03563,3294.3,3293.8,0.06571276]
[1722450424964,3.03573,3294.1,3293.8,0.005]
[1722450425169,3.03561,3294.3,3293.8,0.005]
[1722450425351,3.0355,3294.4,3293.8,3.04099]
[1722450425672,3.0356,3294.3,3293.8,0.005]
[1722450426080,5.3057,3294.9,3293.9,3.03588]
[1722450426241,5.3057,3294.9,3294.0,0.0607115]
[1722450426242,3.47027517,3294.8,3294.0,0.0607115]
[1722450426442,3.03527,3294.6,3293.9,3.03583]
[1722450426663,5.3057,3294.9,3293.9,3.03583]
[1722450426877,3.03537,3294.5,3293.9,3.03583]
[1722450427252,3.03573,3294.1,3293.8,0.73544887]
[1722450427438,3.03585,3294.0,3293.8,0.005]
[1722450427648,3.03537,3294.5,3293.8,0.005]
[1722450427952,3.03566,3294.2,3293.8,0.005]
[1722450428338,3.03575,3294.1,3293.8,0.005]
[1722450428743,3.0356,3294.3,3293.8,0.005]
[1722450428941,3.03542,3294.5,3293.9,3.03585]
[1722450429155,5.3057,3294.9,3293.8,1.03905187]
[1722450429156,6.07099,3294.4,3293.8,1.03905187]
[1722450429376,3.03546,3294.4,3293.8,1.03905187]
[1722450429576,3.03532,3294.6,3294.0,3.03576]
[1722450429750,5.22577514,3294.8,3293.8,4.07500187]
[1722450429956,3.03527,3294.6,3293.9,1.13650019]
[1722450430160,3.03527,3294.6,3293.9,4.17235019]
[1722450430358,3.03527,3294.6,3294.0,3.0358]
[1722450430749,3.03527,3294.6,3294.0,3.03575]
[1722450430949,3.03513,3294.8,3294.1,3.03568]
[1722450430950,6.07028,3294.8,3294.1,3.03568]
[1722450431149,3.03518,3294.7,3294.1,3.03568]
[1722450431384,3.03527,3294.6,3294.0,3.03575]
[1722450431585,5.3057,3294.9,3294.0,3.45347502]
[1722450431886,5.66045333,3294.8,3294.6,0.2]
[1722450432074,3.03516,3294.8,3294.6,0.2]
[1722450432274,3.03502,3294.9,3294.6,0.2]
[1722450432678,2.19020733,3295.2,3294.6,0.2]
[1722450432893,3.03496,3295.0,3294.6,0.2]
[1722450433395,3.03484,3295.1,3294.6,0.2]
[1722450433893,2.1918006,3295.5,3294.7,3.03516]
[1722450433894,3.03448,3295.5,3294.7,3.03516]
[1722450434065,6.06937,3295.3,3294.7,3.03516]
[1722450434467,3.03481,3295.1,3294.6,3.18520829]
[1722450434673,3.03468,3295.3,3294.6,6.22044829]
[1722450434870,3.03468,3295.3,3294.6,3.23524]
[1722450435079,6.06896,3295.5,3294.8,3.03507]
[1722450435274,3.03445,3295.5,3294.9,3.03493]
[1722450435801,0.43560662,3295.4,3294.6,35.2]
[1722450435980,3.03513,3294.8,3294.6,35.2]
[1722450436179,3.0351,3294.8,3294.6,0.2]
[1722450436377,3.03517,3294.7,3294.6,0.2]
[1722450436687,0.30351,3294.8,3294.6,0.2]
[1722450436688,3.03508,3294.8,3294.6,0.2]
[1722450436889,3.03517,3294.7,3294.6,0.2]
[1722450437064,3.03481,3295.1,3294.6,0.2]
[1722450437270,3.03505,3294.9,3294.6,0.2]
[1722450437704,3.03471,3295.2,3294.6,0.2]
[1722450437870,3.03467,3295.3,3294.7,3.03517]
[1722450438068,0.43566017,3295.2,3294.7,3.03517]
[1722450438267,3.03467,3295.3,3294.8,0.06069565]
[1722450438568,2.19422641,3295.4,3294.8,3.09576565]
[1722450438789,0.4355746,3295.3,3294.8,3.09576565]
[1722450438990,0.4355746,3295.3,3294.6,3.56485432]
[1722450438991,0.4355746,3295.2,3294.6,3.56485432]
[1722450439190,0.4355746,3295.2,3294.7,3.03517]
[1722450439389,3.03459,3295.4,3294.7,3.09586544]
[1722450439604,0.4356947,3295.3,3294.9,3.03498]
[1722450439805,6.069,3295.5,3294.8,0.06069544]
[1722450440107,3.47019072,3295.4,3294.8,3.03508]
[1722450440402,2.19434686,3295.6,3295.0,3.03488]
[1722450440403,3.03435,3295.6,3295.0,3.03488]
[1722450440591,3.03458,3295.4,3294.7,0.66607198]
[1722450440763,2.19434686,3295.5,3294.8,0.0606971]
[1722450440966,0.43568713,3295.4,3294.8,0.0606971]
[1722450441171,5.22876686,3295.6,3294.8,3.0957171]
[1722450441484,0.4358081,3295.5,3294.8,3.0957171]
[1722450441680,3.0344,3295.6,3294.8,3.0957171]
[1722450441893,3.03453,3295.4,3294.8,3.0957171]
[1722450442514,3.03453,3295.4,3294.8,3.03502]
[1722450443019,3.03496,3295.0,3294.6,0.2]
[1722450443252,3.03481,3295.1,3294.6,0.2]
[1722450443380,3.03471,3295.3,3294.6,0.2]
[1722450443575,0.4358729,3295.2,3294.6,3.23526]
[1722450443810,2.19375747,3295.5,3294.8,3.03507]
[1722450444014,3.03463,3295.3,3294.6,3.23518]
[1722450444401,3.03481,3295.1,3294.6,0.2]
[1722450446315,2.41294564,3295.4,3294.7,0.06069831]
[1722450446614,2.41294564,3295.4,3294.6,0.2]
[1722450446615,2.62771423,3295.3,3294.6,0.2]
[1722450446819,3.46892434,3295.2,3294.7,35.0]
[1722450447021,0.43414434,3295.1,3294.7,35.0]
[1722450447389,3.03478,3295.2,3294.7,35.0]
[1722450447792,3.03483,3295.1,3294.7,35.0]
[1722450448387,3.03472,3295.2,3294.7,35.0]
[1722450450807,3.03486,3295.1,3294.6,0.2]
[1722450451111,0.43427902,3295.0,3294.6,0.2]
[1722450451316,0.43426732,3294.9,3294.6,0.2]
[1722450451627,3.03513,3294.8,3294.6,0.2]
[1722450451999,3.03517,3294.7,3294.6,0.2]
[1722450452613,6.07034,3294.7,3294.6,0.2]
[1722450452827,7.11198955,3294.7,3294.6,0.2]
[1722450453028,3.642204,3294.7,3294.6,0.2]
[1722450453216,4.07655277,3294.7,3294.6,0.2]
[1722450453589,7.11172277,3294.7,3294.6,0.2]
[1722450453796,4.07655277,3294.7,3294.6,0.2]
[1722450454125,3.03517,3294.7,3294.6,0.2]
[1722450454628,2.19456829,3295.0,3294.6,0.2]
[1722450454821,3.03492,3295.0,3294.6,0.2]
[1722450455031,5.22925829,3295.3,3294.6,0.2]
[1722450455235,4.54662128,3295.2,3294.6,0.2]
[1722450455435,3.03494,3295.0,3294.6,0.2]
[1722450455609,3.03517,3294.7,3294.6,0.2]
[1722450456364,3.27257727,3295.2,3294.6,0.2]
[1722450456528,3.03507,3294.9,3294.6,0.2]
[1722450457223,3.03517,3294.7,3294.6,0.2]
[1722450457549,3.03485,3295.1,3294.6,0.2]
[1722450457747,0.43434327,3295.0,3294.6,0.2]
[1722450458043,5.54707575,3295.4,3294.6,0.2]
[1722450458044,2.19494387,3295.5,3294.6,3.16777865]
[1722450458213,3.46884417,3295.4,3294.7,3.03515]
[1722450458414,3.46894635,3295.3,3294.8,0.06069292]
[1722450458721,3.03464,3295.3,3294.8,0.06069292]
[1722450459334,3.03449,3295.5,3295.0,3.03489]
[1722450459551,3.03449,3295.5,3295.0,3.09558131]
[1722450459713,7.47,3295.6,3295.1,3.0348]
[1722450459917,7.47,3295.6,3295.2,0.06068899]
[1722450460451,2.59321407,3296.2,3295.4,2.552]
[1722450460452,2.1953135,3296.2,3295.4,2.552]
[1722450460654,2.59321407,3296.5,3295.4,2.552]
[1722450460655,5.2289035,3296.5,3295.8,3.0341]
[1722450460852,6.14949303,3297.1,3295.8,35.0]
[1722450460853,3.03371,3296.3,3295.8,35.0]
[1722450461053,3.03376,3296.3,3295.8,35.0]
[1722450461354,2.59321407,3296.8,3295.8,35.0]
[1722450461355,3.03342,3296.7,3295.9,0.06067475]
[1722450461650,3.03342,3296.7,3296.0,3.0339]
[1722450461651,0.43427101,3296.6,3296.0,3.0339]
[1722450461813,0.43431884,3296.5,3296.0,3.0339]
[1722450462014,1.88102943,3296.5,3296.1,0.06067026]
[1722450462314,3.03335,3296.7,3296.1,3.03388]
[1722450462520,1.88010659,3296.6,3296.1,3.03388]
[1722450462730,1.88010659,3296.7,3296.2,0.06067018]
[1722450463019,4.91325659,3296.9,3296.3,0.30944702]
[1722450463212,1.88010659,3297.0,3296.4,0.06066577]
[1722450463448,4.91316659,3297.0,3296.4,3.09421577]
[1722450463624,3.03306,3297.0,3296.4,3.09421577]
[1722450463823,7.47,3297.2,3296.6,3.03335]
[1722450463824,9.35010659,3297.2,3296.6,3.03335]
[1722450464028,1.88010659,3297.3,3296.7,3.03326]
[1722450464222,5.40421925,3297.3,3296.5,0.06066211]
[1722450464549,3.03262,3297.5,3296.8,3.03318]
[1722450464724,1.88010659,3297.6,3296.9,3.09379511]
[1722450464926,3.03245,3297.7,3297.1,3.03296]
[1722450465270,3.03245,3297.7,3296.9,3.09373511]
[1722450465466,3.03245,3297.7,3297.0,3.03304]
[1722450465631,3.03245,3297.7,3297.1,0.06065271]
[1722450465832,3.638921,3297.7,3297.1,0.06065271]
[1722450467147,3.0325,3297.6,3297.1,0.06065271]
[1722450467552,3.03208,3298.1,3297.1,0.06065271]
[1722450467717,3.03208,3298.1,3297.3,3.03277]
[1722450467718,3.03223,3297.9,3297.3,3.03277]
[1722450467919,3.03187,3298.3,3297.5,3.03259]
[1722450468121,3.03198,3298.2,3297.3,3.64537827]
[1722450468373,3.03205,3298.1,3297.5,3.03259]
[1722450468657,3.03194,3298.3,3297.5,3.03259]
[1722450468954,3.03194,3298.3,3297.6,3.0325]
[1722450469161,3.03201,3298.2,3297.5,3.03259]
[1722450470121,3.03214,3298.0,3297.2,3.03287]
[1722450470522,3.03214,3298.0,3297.3,3.03272]
[1722450470724,3.03214,3298.0,3297.4,3.03266]
[1722450470924,3.03214,3298.0,3297.2,4.38014271]
[1722450471235,3.03214,3298.0,3297.3,3.03277]
[1722450471667,2.3279,3299.2,3297.5,3.03256]
[1722450471822,3.03183,3298.4,3297.5,10.86498043]
[1722450472023,3.03183,3298.4,3297.7,3.0324]
[1722450472246,3.03183,3298.4,3297.8,3.03231]
[1722450472463,3.03192,3298.3,3297.5,10.86498043]
[1722450472660,0.3,3298.7,3297.5,7.83242043]
[1722450472868,3.03156,3298.7,3297.8,3.0323]
[1722450473072,3.03174,3298.5,3297.8,3.0323]
[1722450473235,3.03174,3298.5,3297.9,3.03222]
[1722450473559,3.03178,3298.4,3297.7,3.03235]
[1722450473725,3.03192,3298.3,3297.7,3.03235]
[1722450474070,3.03174,3298.5,3297.7,3.68046888]
[1722450474238,6.0631,3298.7,3297.9,3.03218]
[1722450474443,3.03153,3298.7,3297.8,3.03227]
[1722450474744,3.03178,3298.4,3297.8,3.03232]
[1722450476272,3.03196,3298.2,3297.7,0.64813888]
[1722450476442,3.03178,3298.4,3297.7,3.68054888]
[1722450476645,3.03187,3298.3,3297.7,3.68054888]
[1722450477359,3.03178,3298.4,3297.8,3.0323]
[1722450477565,3.03178,3298.4,3297.9,0.36804389]
[1722450478062,3.03149,3298.7,3298.1,3.03204]
[1722450478365,3.03122,3299.0,3298.2,2.33363156]
[1722450478533,3.0,3299.1,3298.3,0.06062648]
[1722450478534,3.03114,3299.1,3298.3,0.06062648]
[1722450478734,3.03108,3299.2,3298.5,3.03168]
[1722450479263,3.03108,3299.2,3298.5,3.09230624]
[1722450479467,3.03114,3299.1,3298.5,3.09223624]
[1722450479763,3.03108,3299.2,3298.6,3.03157]
[1722450479970,2.277,3299.6,3298.7,3.03149]
[1722450479971,3.03076,3299.5,3298.7,3.03149]
[1722450480181,3.03067,3299.6,3298.7,0.303149]
[1722450480382,3.03136,3298.9,3298.4,35.0]
[1722450480678,3.0315,3298.7,3298.4,35.0]
[1722450481039,2.3292,3299.1,3298.0,7.29]
[1722450481255,3.03133,3298.9,3298.0,7.29]
[1722450481475,3.03183,3298.4,3298.0,42.29]
[1722450481680,3.03145,3298.8,3298.0,42.29]
[1722450481841,3.03145,3298.8,3298.1,3.03199]
[1722450482046,3.03145,3298.8,3298.2,3.03195]
[1722450482684,3.03145,3298.8,3298.0,10.32207]
[1722450482685,3.0315,3298.7,3298.1,3.03203]
[1722450482978,3.03132,3298.9,3298.3,3.03183]
[1722450483211,2.3125,3299.6,3298.5,3.03164]
[1722450483486,12.17,3300.3,3298.9,3.0313]
[1722450483487,10.50056,3299.8,3298.9,3.0313]
[1722450483646,5.34274,3300.1,3298.9,3.0313]
[1722450483647,3.03045,3299.9,3298.9,3.03124]
[1722450483844,3.03076,3299.5,3299.0,0.303124]
[1722450484053,3.03076,3299.5,3298.7,7.29]
[1722450484054,3.03059,3299.7,3298.7,7.29]
[1722450484276,3.03085,3299.4,3298.7,10.32146]
[1722450484476,3.03101,3299.3,3298.7,7.29]
[1722450484680,3.0312,3299.1,3298.7,7.29]
[1722450484883,3.03064,3299.7,3298.6,35.0]
[1722450485093,3.03123,3299.0,3298.6,35.0]
[1722450485294,3.03088,3299.4,3298.7,3.03144]
[1722450485459,3.03088,3299.4,3298.8,3.0314]
[1722450486087,3.03071,3299.6,3298.8,3.0314]
[1722450486393,3.03058,3299.7,3299.1,3.03111]
[1722450486607,3.03081,3299.5,3298.8,3.03138]
[1722450486766,3.03081,3299.5,3298.8,3.0314]
[1722450486966,3.03081,3299.5,3298.6,3.03151]
[1722450486967,3.0309,3299.4,3298.6,3.03151]
[1722450487190,3.03062,3299.7,3299.1,3.03111]
[1722450487661,3.03067,3299.6,3298.9,3.03124]
[1722450487864,3.0308,3299.5,3298.9,3.03124]
[1722450488121,3.0308,3299.5,3298.9,0.60627]
[1722450488325,3.03032,3300.0,3298.9,0.60627]
[1722450488613,3.03052,3299.8,3298.9,3.63758]
[1722450488815,6.06107,3299.8,3299.1,3.03112]
[1722450488983,3.03052,3299.8,3299.1,3.03112]
[1722450489296,5.3125,3300.1,3299.3,3.03092]
[1722450489297,3.03041,3299.9,3299.3,3.03092]
[1722450489705,3.0,3300.1,3299.4,3.09145172]
[1722450489922,3.03016,3300.2,3299.5,3.03074]
[1722450490081,9.7516,3300.5,3299.5,3.03074]
[1722450490082,3.03003,3300.3,3299.6,0.06060593]
[1722450490280,2.2816,3300.5,3299.2,7.29]
[1722450490281,3.03053,3299.8,3299.2,7.29]
[1722450490787,3.03082,3299.5,3299.2,7.29]
[1722450491011,3.03034,3300.0,3298.9,0.60627]
[1722450491161,3.03078,3299.5,3298.7,7.29]
[1722450491367,3.031,3299.3,3298.8,35.0]
[1722450491701,3.03113,3299.1,3298.7,7.29]
[1722450492014,3.03118,3299.1,3298.7,7.29]
[1722450492600,3.0314,3298.8,3298.7,7.29]
[1722450492808,3.03137,3298.9,3298.2,5.30168]
[1722450493104,3.03137,3298.9,3298.3,1.562365]
[1722450493324,3.03149,3298.7,3298.3,1.562365]
[1722450493504,3.03137,3298.9,3298.2,3.03194]
[1722450493505,3.03145,3298.8,3298.2,3.03194]
[1722450493699,3.03186,3298.3,3298.1,7.29]
[1722450493934,5.52788,3299.7,3298.1,7.29]
[1722450494141,3.03166,3298.6,3298.1,7.29]
[1722450494341,3.03197,3298.2,3297.7,7.29]
[1722450494840,3.0321,3298.1,3297.7,7.29]
[1722450495509,3.03215,3298.0,3297.7,7.29]
[1722450496216,3.03197,3298.2,3297.7,7.29]
[1722450496755,3.03212,3298.1,3297.7,7.29]
[1722450496899,3.0318,3298.4,3297.6,0.4]
[1722450497094,3.03241,3297.7,3297.6,0.4]
[1722450497300,3.03229,3297.9,3297.6,0.4]
[1722450497536,3.03188,3298.3,3297.7,0.06064545]
[1722450497735,3.0317,3298.5,3297.8,3.03226]
[1722450497907,3.0317,3298.5,3297.9,0.06063352]
[1722450498632,3.03142,3298.8,3297.6,3.43242]
[1722450498811,3.03191,3298.3,3297.7,3.0324]
[1722450499336,3.03177,3298.4,3297.8,3.03227]
[1722450499641,3.0,3298.7,3297.6,0.4]
[1722450499859,3.03197,3298.2,3297.6,0.4]
[1722450500201,3.0321,3298.1,3297.6,0.4]
[1722450500543,3.03186,3298.3,3297.6,3.43244]
[1722450500845,3.03172,3298.5,3297.8,3.03231]
[1722450501135,3.03159,3298.6,3297.9,0.06063267]
[1722450501299,3.0318,3298.4,3297.9,0.06063267]
[1722450502249,3.03187,3298.3,3297.7,5.327]
[1722450502749,3.03212,3298.1,3297.6,0.4]
[1722450503107,3.03205,3298.1,3297.6,0.4]
[1722450503328,3.03186,3298.4,3297.6,0.4]
[1722450503504,3.03197,3298.2,3297.6,0.4]
[1722450503700,3.03185,3298.4,3297.6,0.4]
[1722450503912,6.06369,3298.4,3297.7,4.104572]
[1722450504142,3.03183,3298.4,3297.7,4.104572]
[1722450504315,3.03183,3298.4,3297.8,0.06063637]
[1722450504522,3.03197,3298.2,3297.7,1.072252]
[1722450504732,3.03182,3298.4,3297.7,4.104612]
[1722450505044,3.03182,3298.4,3297.8,0.4504612]
[1722450505246,3.03147,3298.8,3297.9,0.06063639]
[1722450505431,3.03147,3298.8,3298.1,3.03204]
[1722450505634,3.03128,3299.0,3298.1,2.3807]
[1722450505816,3.0,3299.3,3298.2,0.541279]
[1722450506014,3.03164,3298.6,3298.1,9.6707]
[1722450506218,3.03149,3298.8,3298.3,35.0]
[1722450506734,3.03155,3298.7,3298.3,35.0]
[1722450507045,3.03131,3298.9,3298.3,38.03186]
[1722450507218,3.03142,3298.8,3298.3,35.0]
[1722450507412,3.03147,3298.8,3298.3,37.98520829]
[1722450508025,3.03159,3298.6,3298.3,37.98520829]
[1722450509229,3.03147,3298.8,3298.3,37.98520829]
[1722450510406,3.03151,3298.7,3298.3,37.98520829]
[1722450511512,5.866708,3299.6,3298.3,37.98520829]
[1722450511742,3.03159,3298.6,3298.3,35.0]
[1722450512056,3.03196,3298.2,3298.0,0.2]
[1722450512212,3.03204,3298.1,3298.0,0.2]
[1722450512531,6.06408,3298.1,3298.0,0.2]
[1722450512732,6.06408,3298.1,3298.0,0.4]
[1722450512933,3.03204,3298.1,3298.0,0.4]
[1722450513271,6.06408,3298.1,3298.0,0.4]
[1722450513914,3.03204,3298.1,3298.0,0.4]
[1722450516746,3.03204,3298.1,3298.0,0.6]
[1722450518164,6.367284,3298.1,3298.0,0.6]
[1722450518366,11.687924,3298.1,3298.0,0.6]
[1722450518541,12.12251774,3298.1,3298.0,0.6]
[1722450518735,9.09047774,3298.1,3298.0,0.6]
[1722450518936,12.12251774,3298.1,3298.0,0.6]
[1722450519136,13.99991609,3298.1,3298.0,0.6]
[1722450519336,10.96787609,3298.1,3298.0,0.6]
[1722450519555,4.90943835,3298.1,3298.0,0.6]
[1722450519737,3.03204,3298.1,3298.0,0.6]
[1722450520065,3.0319,3298.3,3298.0,0.6]
[1722450520564,1.87740001,3298.5,3298.0,0.6]
[1722450520735,3.03197,3298.2,3298.0,0.6]
[1722450521138,3.03204,3298.1,3298.0,0.6]
[1722450521676,6.06408,3298.1,3298.0,0.6]
[1722450521965,3.03204,3298.1,3298.0,0.6]
[1722450522530,3.03189,3298.3,3298.0,0.6]
[1722450522752,3.03195,3298.2,3298.0,0.6]
[1722450522951,3.03193,3298.3,3298.0,0.6]
[1722450523350,3.03204,3298.1,3298.0,0.6]
[1722450523552,8.47368,3298.1,3298.0,0.6]
[1722450524063,10.35116461,3298.1,3298.0,0.6]
[1722450524266,13.38320461,3298.1,3298.0,0.6]
[1722450524430,11.94030123,3298.1,3298.0,0.6]
[1722450524625,13.40246537,3298.1,3298.0,0.6]
[1722450525438,12.96788414,3298.1,3298.0,0.6]
[1722450525639,13.40241338,3298.1,3298.0,0.6]
[1722450526051,13.40222308,3298.1,3298.0,0.6]
[1722450526257,13.40218109,3298.1,3298.0,0.6]
[1722450526444,12.96788414,3298.1,3298.0,0.6]
[1722450526642,13.40219449,3298.1,3298.0,0.6]
[1722450526840,13.40221053,3298.1,3298.0,0.6]
[1722450527067,12.96788414,3298.1,3298.0,0.6]
[1722450527370,6.06408,3298.1,3298.0,0.6]
[1722450529567,3.03204,3298.1,3298.0,0.6]
[1722450529972,5.22043979,3298.6,3298.0,0.6]
[1722450529973,3.0318,3298.4,3298.0,0.6]
[1722450530372,6.06364,3298.4,3298.0,0.6]
[1722450530573,6.06365,3298.4,3298.0,0.6]
[1722450530774,3.0318,3298.4,3298.0,0.6]
[1722450530989,3.03163,3298.6,3298.1,0.06063762]
[1722450531346,1.87684129,3299.0,3298.5,3.0316]
[1722450531545,3.03113,3299.1,3298.6,0.06062497]
[1722450531757,4.90816098,3299.3,3298.6,0.06062497]
[1722450531957,3.03113,3299.1,3298.6,0.06062497]
[1722450532168,4.90816098,3299.3,3298.6,6.07741326]
[1722450532354,3.03104,3299.2,3298.6,3.04583326]
[1722450532559,3.03115,3299.1,3298.6,3.04583326]
[1722450533357,3.03115,3299.1,3298.6,2.98520829]
[1722450533358,3.03132,3298.9,3298.6,2.98520829]
[1722450533682,3.03115,3299.1,3298.6,2.98520829]
[1722450533855,3.03115,3299.1,3298.6,3.04583267]
[1722450534047,3.03099,3299.3,3298.4,35.0]
[1722450534048,4.90865946,3299.0,3298.4,35.0]
[1722450534244,1.87740946,3299.0,3298.5,0.06062664]
[1722450534442,3.0313,3299.0,3298.5,0.06062664]
[1722450534845,3.0314,3298.8,3298.4,35.0]
[1722450535041,3.0313,3299.0,3298.4,37.98520829]
[1722450535275,3.03133,3298.9,3298.4,37.98520829]
[1722450535980,3.03159,3298.6,3298.4,35.0]
[1722450536184,6.06328,3298.6,3298.0,3.63883476]
[1722450536412,3.03162,3298.6,3298.0,6.67090476]
[1722450536682,3.03168,3298.5,3298.1,35.0]
[1722450536868,3.03168,3298.5,3298.1,2.98520829]
[1722450537046,3.03168,3298.5,3298.0,3.63883476]
[1722450537251,3.03168,3298.5,3298.0,0.6]
[1722450537252,3.03186,3298.3,3298.0,0.6]
[1722450538090,1.8791756,3298.6,3298.0,0.6]
[1722450538278,4.9107156,3298.7,3298.1,3.0926522]
[1722450538478,1.8791756,3298.7,3298.1,3.0926222]
[1722450538655,1.8791756,3298.8,3298.2,5.34324]
[1722450538854,3.0315,3298.7,3298.2,6.24682622]
[1722450539066,1.8791756,3298.8,3298.2,41.24682622]
[1722450539268,4.9105056,3298.9,3298.2,41.24682622]
[1722450539684,4.9105856,3298.8,3298.2,6.24682622]
[1722450539884,4.9105856,3298.8,3298.0,3.63213]
[1722450539885,3.03173,3298.5,3298.0,0.6]
[1722450540474,1.8791756,3298.6,3298.0,0.6]
[1722450540796,1.87937608,3298.6,3298.0,3.63208]
[1722450541093,3.03164,3298.6,3298.0,3.63208]
[1722450541295,4.91090608,3298.7,3298.2,3.03194]
[1722450541491,4.91090608,3298.7,3298.0,6.66414]
[1722450541492,7.94247608,3298.7,3298.0,6.66414]
[1722450541683,1.87937608,3298.7,3298.2,3.03193]
[1722450541860,1.87937608,3298.7,3298.0,0.6]
[1722450541861,1.87937608,3298.7,3298.3,3.03182]
[1722450542061,1.87937608,3298.7,3298.4,3.03171]
[1722450542296,1.87937608,3298.8,3298.2,3.03187]
[1722450542622,1.87937608,3298.8,3298.0,3.63209]
[1722450542623,1.87937608,3298.5,3298.0,3.63209]
[1722450542757,1.87937608,3298.7,3298.0,3.58520829]
[1722450542965,5.34777,3299.5,3298.0,6.61731829]
[1722450542966,3.03166,3298.6,3298.0,6.61731829]
[1722450543267,1.87953005,3298.5,3298.0,3.58520829]
[1722450543468,3.03168,3298.5,3298.0,6.61732829]
[1722450543870,3.03204,3298.1,3298.0,0.6]
[1722450544104,6.06408,3298.1,3298.0,0.6]
[1722450545098,7.94347057,3298.1,3298.0,0.6]
[1722450545398,9.09612,3298.1,3298.0,0.6]
[1722450546107,11.40352,3298.1,3298.0,0.6]
[1722450546411,13.72590682,3298.1,3298.0,0.6]
[1722450546618,14.86625882,3298.1,3298.0,0.6]
[1722450546822,14.73590948,3298.1,3298.0,0.6]
[1722450547027,12.543872,3298.1,3298.0,0.6]
[1722450549472,14.73468892,3298.1,3298.0,0.6]
[1722450549700,12.543872,3298.1,3298.0,0.6]
[1722450549907,14.73448697,3298.1,3298.0,0.6]
[1722450550062,16.125912,3298.1,3298.0,0.6]
[1722450550265,10.029792,3298.1,3296.3,2.3656]
[1722450550568,3.03329,3296.8,3296.3,2.3656]
[1722450550782,3.03329,3296.8,3296.4,35.0]
[1722450551199,3.03334,3296.7,3296.4,35.0]
[1722450551415,3.03322,3296.9,3296.4,35.0]
[1722450551569,3.03182051,3296.9,3296.4,35.0]
[1722450551902,3.03182051,3296.9,3296.4,37.98520829]
[1722450552664,3.03358,3296.5,3295.8,5.3345]
[1722450552861,1.87521635,3297.3,3295.8,5.3345]
[1722450552862,3.03361,3296.4,3295.8,5.3345]
[1722450553065,4.90827635,3297.0,3295.8,5.3345]
[1722450553066,3.0334,3296.7,3295.8,5.3345]
[1722450553286,3.0334,3296.7,3296.0,3.03397]
[1722450553490,1.87521635,3297.2,3295.8,5.33448]
[1722450553797,3.03375,3296.3,3295.8,3.137278]
[1722450554187,3.03386,3296.2,3295.8,3.137278]
[1722450554403,3.03386,3296.2,3295.8,2.3004]
[1722450554965,2.3227,3296.6,3295.4,35.0]
[1722450555180,3.03395,3296.1,3295.4,38.03452]
[1722450555395,3.03395,3296.1,3295.4,41.01972829]
[1722450555891,3.0338,3296.2,3295.5,3.03442]
[1722450556245,3.03371,3296.3,3295.4,37.98520829]
[1722450556385,3.03398,3296.0,3295.4,37.98520829]
[1722450556582,3.03398,3296.0,3295.5,2.98520829]
[1722450556788,3.03395,3296.1,3295.5,2.98520829]
[1722450557425,3.03398,3296.0,3295.5,2.98520829]
[1722450557989,5.35618,3296.6,3295.5,2.98520829]
[1722450558325,3.03361,3296.4,3295.2,5.51235]
[1722450558484,3.03414,3295.9,3295.2,5.51235]